[Event "January 9 Early 2024"]
[Site "https://www.chess.com"]
[Date "2024.01.11"]
[Round "10"]
[White "Cori T., Deysi"]
[Black "Herman, Daniel"]
[Result "0-1"]
[Board "82"]
[TimeControl "180+1"]
[WhiteFideId "3801934"]
[BlackFideId "30935008"]
[WhiteElo "2544"]
[BlackElo "2444"]
[WhiteTeam "PER"]
[BlackTeam "USA"]
[WhiteClock "0:00:07"]
[BlackClock "0:00:44"]

1. c4 {[%clk 0:03:00]}  e5 {[%clk 0:02:58]} 2. Nc3 {[%clk 0:03:00]}  Nf6 {[%clk 0:02:59]} 3. g3 {[%clk 0:03:00]}  Bb4 {[%clk 0:02:58]} 4. Qb3 {[%clk 0:02:57]}  Nc6 {[%clk 0:02:57]} 5. e3 {[%clk 0:02:56]}  O-O {[%clk 0:02:54]} 6. Bg2 {[%clk 0:02:57]}  a5 {[%clk 0:02:47]} 7. Nge2 {[%clk 0:02:56]}  d6 {[%clk 0:02:42]} 8. a3 {[%clk 0:02:54]}  Bc5 {[%clk 0:02:37]} 9. Nb5 {[%clk 0:02:51]}  a4 {[%clk 0:02:32]} 10. Qc2 {[%clk 0:02:49]}  Bg4 {[%clk 0:02:29]} 11. f3 {[%clk 0:02:47]}  Bh5 {[%clk 0:02:28]} 12. d4 {[%clk 0:02:46]}  exd4 {[%clk 0:02:25]} 13. exd4 {[%clk 0:02:47]}  Bg6 {[%clk 0:02:25]} 14. Qd1 {[%clk 0:02:45]}  Bb6 {[%clk 0:02:23]} 15. O-O {[%clk 0:02:42]}  Re8 {[%clk 0:02:22]} 16. Kh1 {[%clk 0:02:42]}  Na5 {[%clk 0:02:18]} 17. Nf4 {[%clk 0:02:02]}  Nxc4 {[%clk 0:02:10]} 18. Nxg6 {[%clk 0:01:59]}  hxg6 {[%clk 0:02:11]} 19. Qd3 {[%clk 0:01:58]}  d5 {[%clk 0:02:08]} 20. Bg5 {[%clk 0:01:58]}  c6 {[%clk 0:02:00]} 21. Nc3 {[%clk 0:01:58]}  Nxb2 {[%clk 0:01:57]} 22. Qc2 {[%clk 0:01:56]}  Nc4 {[%clk 0:01:54]} 23. Rfd1 {[%clk 0:01:56]}  Ne3 {[%clk 0:01:48]} 24. Bxe3 {[%clk 0:01:56]}  Rxe3 {[%clk 0:01:49]} 25. Nxa4 {[%clk 0:01:56]}  Ba7 {[%clk 0:01:42]} 26. Qb2 {[%clk 0:01:32]}  Qe7 {[%clk 0:01:40]} 27. Nc5 {[%clk 0:01:24]}  Bxc5 {[%clk 0:01:36]} 28. dxc5 {[%clk 0:01:25]}  Re2 {[%clk 0:01:34]} 29. Qb4 {[%clk 0:01:22]}  Re8 {[%clk 0:01:17]} 30. Qc3 {[%clk 0:01:07]}  Qe3 {[%clk 0:01:11]} 31. Qxe3 {[%clk 0:01:04]}  R8xe3 {[%clk 0:01:12]} 32. Rdb1 {[%clk 0:00:59]}  Rd2 {[%clk 0:01:05]} 33. Rxb7 {[%clk 0:00:53]}  Ree2 {[%clk 0:01:05]} 34. Rg1 {[%clk 0:00:53]}  Rc2 {[%clk 0:00:59]} 35. Rb8+ {[%clk 0:00:43]}  Kh7 {[%clk 0:00:58]} 36. Rb7 {[%clk 0:00:43]}  d4 {[%clk 0:00:47]} 37. g4 {[%clk 0:00:34]}  Nd5 {[%clk 0:00:45]} 38. Rxf7 {[%clk 0:00:15]}  Ne3 {[%clk 0:00:45]} 39. Rd7 {[%clk 0:00:15]}  Nxg2 {[%clk 0:00:44]} 40. Rxd4 {[%clk 0:00:11]}  Nf4 {[%clk 0:00:43]} 41. Rgd1 {[%clk 0:00:07]}  Rxh2+ {[%clk 0:00:43]} 42. Kg1 {[%clk 0:00:07]}  Rcg2+ {[%clk 0:00:44]} 0-1

[Event "January 9 Early 2024"]
[Site "https://www.chess.com"]
[Date "2024.01.11"]
[Round "10"]
[White "Bonin, Jay"]
[Black "Lopusiewicz, Piotr"]
[Result "0-1"]
[Board "84"]
[TimeControl "180+1"]
[WhiteFideId "2000644"]
[BlackFideId "1116029"]
[WhiteElo "2320"]
[BlackElo "2475"]
[WhiteTeam "USA"]
[BlackTeam "POL"]
[WhiteClock "0:00:12"]
[BlackClock "0:00:18"]

1. d4 {[%clk 0:02:55]}  Nf6 {[%clk 0:02:59]} 2. Nf3 {[%clk 0:02:54]}  d5 {[%clk 0:02:59]} 3. c4 {[%clk 0:02:52]}  e6 {[%clk 0:02:59]} 4. Nc3 {[%clk 0:02:51]}  c5 {[%clk 0:03:00]} 5. cxd5 {[%clk 0:02:50]}  exd5 {[%clk 0:03:00]} 6. Bg5 {[%clk 0:02:48]}  Be6 {[%clk 0:03:00]} 7. e4 {[%clk 0:02:44]}  Be7 {[%clk 0:02:58]} 8. Bb5+ {[%clk 0:02:37]}  Nc6 {[%clk 0:02:56]} 9. Ne5 {[%clk 0:02:31]}  Rc8 {[%clk 0:02:31]} 10. dxc5 {[%clk 0:02:23]}  d4 {[%clk 0:02:20]} 11. Bxc6+ {[%clk 0:02:10]}  bxc6 {[%clk 0:02:20]} 12. Ne2 {[%clk 0:02:06]}  Qa5+ {[%clk 0:02:06]} 13. Kf1 {[%clk 0:01:50]}  Qxc5 {[%clk 0:01:58]} 14. Qxd4 {[%clk 0:01:47]}  Qb5 {[%clk 0:01:45]} 15. a4 {[%clk 0:01:40]}  Qa6 {[%clk 0:01:40]} 16. f3 {[%clk 0:01:35]}  O-O {[%clk 0:01:33]} 17. Kf2 {[%clk 0:01:31]}  Nxe4+ {[%clk 0:01:20]} 18. Qxe4 {[%clk 0:01:29]}  Bxg5 {[%clk 0:01:20]} 19. Rhd1 {[%clk 0:01:21]}  Qb6+ {[%clk 0:01:10]} 20. Qd4 {[%clk 0:01:17]}  c5 {[%clk 0:01:07]} 21. Qc3 {[%clk 0:01:14]}  Bf6 {[%clk 0:01:03]} 22. Kg1 {[%clk 0:01:08]}  Rfe8 {[%clk 0:00:49]} 23. f4 {[%clk 0:00:58]}  c4+ {[%clk 0:00:48]} 24. Kh1 {[%clk 0:00:55]}  Qf2 {[%clk 0:00:46]} 25. Qf3 {[%clk 0:00:37]}  Qxf3 {[%clk 0:00:43]} 26. gxf3 {[%clk 0:00:35]}  Red8 {[%clk 0:00:38]} 27. Nd4 {[%clk 0:00:32]}  Bd5 {[%clk 0:00:35]} 28. Nf5 {[%clk 0:00:30]}  Bxe5 {[%clk 0:00:20]} 29. Ne7+ {[%clk 0:00:28]}  Kf8 {[%clk 0:00:20]} 30. Nxd5 {[%clk 0:00:26]}  Bxb2 {[%clk 0:00:20]} 31. Rab1 {[%clk 0:00:20]}  c3 {[%clk 0:00:21]} 32. Nxc3 {[%clk 0:00:18]}  Bxc3 {[%clk 0:00:19]} 33. Rxd8+ {[%clk 0:00:17]}  Rxd8 {[%clk 0:00:19]} 34. Rb7 {[%clk 0:00:14]}  a5 {[%clk 0:00:19]} 35. Kg2 {[%clk 0:00:12]}  g6 {[%clk 0:00:18]} 0-1

[Event "January 9 Early 2024"]
[Site "https://www.chess.com"]
[Date "2024.01.11"]
[Round "10"]
[White "Sarana, Alexey"]
[Black "Ashraf, Artin"]
[Result "0-1"]
[Board "86"]
[TimeControl "180+1"]
[WhiteFideId "24133795"]
[BlackFideId "22514805"]
[WhiteElo "3044"]
[BlackElo "2920"]
[WhiteTeam "SRB"]
[BlackTeam "IRI"]
[WhiteClock "0:00:16"]
[BlackClock "0:00:15"]

1. d4 {[%clk 0:02:52]}  Nf6 {[%clk 0:02:56]} 2. c4 {[%clk 0:02:53]}  e6 {[%clk 0:02:56]} 3. Nc3 {[%clk 0:02:54]}  Bb4 {[%clk 0:02:55]} 4. e3 {[%clk 0:02:54]}  O-O {[%clk 0:02:53]} 5. Bd3 {[%clk 0:02:55]}  Bxc3+ {[%clk 0:02:49]} 6. bxc3 {[%clk 0:02:55]}  d6 {[%clk 0:02:49]} 7. e4 {[%clk 0:02:55]}  e5 {[%clk 0:02:40]} 8. Nf3 {[%clk 0:02:56]}  Re8 {[%clk 0:02:34]} 9. O-O {[%clk 0:02:55]}  exd4 {[%clk 0:02:20]} 10. cxd4 {[%clk 0:02:56]}  Nxe4 {[%clk 0:02:21]} 11. Re1 {[%clk 0:02:57]}  Nf6 {[%clk 0:01:58]} 12. Bg5 {[%clk 0:02:56]}  Nbd7 {[%clk 0:01:57]} 13. Qc2 {[%clk 0:02:44]}  h6 {[%clk 0:01:57]} 14. Rxe8+ {[%clk 0:02:43]}  Qxe8 {[%clk 0:01:56]} 15. Re1 {[%clk 0:02:44]}  Qd8 {[%clk 0:01:53]} 16. Bc1 {[%clk 0:02:44]}  Nf8 {[%clk 0:01:49]} 17. h3 {[%clk 0:02:43]}  b6 {[%clk 0:01:40]} 18. g4 {[%clk 0:02:44]}  Bb7 {[%clk 0:01:33]} 19. d5 {[%clk 0:02:44]}  c6 {[%clk 0:01:33]} 20. g5 {[%clk 0:02:26]}  hxg5 {[%clk 0:01:30]} 21. Bxg5 {[%clk 0:02:24]}  cxd5 {[%clk 0:01:30]} 22. Nd4 {[%clk 0:02:21]}  dxc4 {[%clk 0:01:27]} 23. Bxc4 {[%clk 0:02:20]}  Rc8 {[%clk 0:01:19]} 24. Qd3 {[%clk 0:02:16]}  Rc5 {[%clk 0:01:16]} 25. h4 {[%clk 0:02:12]}  Re5 {[%clk 0:01:08]} 26. Rd1 {[%clk 0:02:02]}  Qc8 {[%clk 0:01:06]} 27. Kh2 {[%clk 0:01:47]}  Ne4 {[%clk 0:00:56]} 28. Rc1 {[%clk 0:01:22]}  Qg4 {[%clk 0:00:49]} 29. Rg1 {[%clk 0:00:59]}  Qh5 {[%clk 0:00:40]} 30. Bd8 {[%clk 0:00:55]}  Ng6 {[%clk 0:00:25]} 31. Qb3 {[%clk 0:00:38]}  Bd5 {[%clk 0:00:15]} 32. Bxd5 {[%clk 0:00:20]}  Rxd5 {[%clk 0:00:16]} 33. Qc3 {[%clk 0:00:16]}  Nxc3 {[%clk 0:00:15]} 0-1

[Event "January 9 Early 2024"]
[Site "https://www.chess.com"]
[Date "2024.01.11"]
[Round "10"]
[White "Mizzi, Jack"]
[Black "Golubev, Mikhail"]
[Result "0-1"]
[Board "87"]
[TimeControl "180+1"]
[WhiteFideId "5602521"]
[BlackFideId "14100983"]
[WhiteElo "2498"]
[BlackElo "2623"]
[WhiteTeam "MLT"]
[BlackTeam "UKR"]
[WhiteClock "0:00:01"]
[BlackClock "0:00:22"]

1. d4 {[%clk 0:03:00]}  Nf6 {[%clk 0:02:59]} 2. c4 {[%clk 0:03:01]}  g6 {[%clk 0:02:58]} 3. g3 {[%clk 0:03:01]}  Bg7 {[%clk 0:02:58]} 4. Bg2 {[%clk 0:03:01]}  O-O {[%clk 0:02:58]} 5. Nf3 {[%clk 0:03:01]}  d6 {[%clk 0:02:58]} 6. O-O {[%clk 0:03:02]}  Nbd7 {[%clk 0:02:57]} 7. Nc3 {[%clk 0:03:02]}  e5 {[%clk 0:02:57]} 8. e4 {[%clk 0:02:59]}  Re8 {[%clk 0:02:57]} 9. Re1 {[%clk 0:02:57]}  exd4 {[%clk 0:02:55]} 10. Nxd4 {[%clk 0:02:57]}  c6 {[%clk 0:02:54]} 11. b3 {[%clk 0:02:52]}  Ng4 {[%clk 0:02:42]} 12. Bb2 {[%clk 0:02:41]}  Nc5 {[%clk 0:02:23]} 13. b4 {[%clk 0:02:16]}  Qf6 {[%clk 0:02:01]} 14. Nf3 {[%clk 0:02:15]}  Nxe4 {[%clk 0:01:56]} 15. Nxe4 {[%clk 0:01:50]}  Qxb2 {[%clk 0:01:46]} 16. Rb1 {[%clk 0:01:50]}  Qxa2 {[%clk 0:01:36]} 17. Nxd6 {[%clk 0:01:43]}  Qxf2+ {[%clk 0:01:27]} 18. Kh1 {[%clk 0:01:43]}  Rd8 {[%clk 0:01:07]} 19. c5 {[%clk 0:00:19]}  Ne3 {[%clk 0:01:06]} 20. Rxe3 {[%clk 0:00:19]}  Qxe3 {[%clk 0:01:06]} 21. Rb3 {[%clk 0:00:18]}  Qe7 {[%clk 0:01:00]} 22. Qd2 {[%clk 0:00:15]}  Be6 {[%clk 0:00:50]} 23. Ra3 {[%clk 0:00:11]}  Bd5 {[%clk 0:00:41]} 24. Re3 {[%clk 0:00:08]}  Qc7 {[%clk 0:00:38]} 25. Qe1 {[%clk 0:00:03]}  Bf8 {[%clk 0:00:30]} 26. Ng5 {[%clk 0:00:02]}  Bxd6 {[%clk 0:00:29]} 27. cxd6 {[%clk 0:00:02]}  Bxg2+ {[%clk 0:00:28]} 28. Kxg2 {[%clk 0:00:02]}  Qxd6 {[%clk 0:00:28]} 29. Qf2 {[%clk 0:00:02]}  Qd2 {[%clk 0:00:23]} 30. Re2 {[%clk 0:00:02]}  Qd5+ {[%clk 0:00:23]} 31. Nf3 {[%clk 0:00:01]}  Re8 {[%clk 0:00:22]} 32. Rd2 {[%clk 0:00:01]}  Qe4 {[%clk 0:00:22]} 33. Kg1 {[%clk 0:00:01]}  Qe3 {[%clk 0:00:22]} 0-1

[Event "January 9 Early 2024"]
[Site "https://www.chess.com"]
[Date "2024.01.11"]
[Round "10"]
[White "Matta, Nicholas"]
[Black "Mikhailovsky, Vladimir"]
[Result "0-1"]
[Board "90"]
[TimeControl "180+1"]
[WhiteFideId "30914523"]
[BlackFideId "34105414"]
[WhiteElo "2580"]
[BlackElo "2816"]
[WhiteTeam "USA"]
[BlackTeam "RUS"]
[WhiteClock "0:00:01"]
[BlackClock "0:00:09"]

1. Nf3 {[%clk 0:03:00]}  d6 {[%clk 0:02:58]} 2. b3 {[%clk 0:02:59]}  e5 {[%clk 0:02:58]} 3. Bb2 {[%clk 0:02:59]}  c5 {[%clk 0:02:58]} 4. c4 {[%clk 0:02:57]}  Nc6 {[%clk 0:02:57]} 5. Nc3 {[%clk 0:02:57]}  g6 {[%clk 0:02:57]} 6. e3 {[%clk 0:02:46]}  Bg7 {[%clk 0:02:57]} 7. Be2 {[%clk 0:02:43]}  Nge7 {[%clk 0:02:57]} 8. O-O {[%clk 0:02:43]}  O-O {[%clk 0:02:57]} 9. Rc1 {[%clk 0:02:13]}  b6 {[%clk 0:02:23]} 10. d3 {[%clk 0:01:55]}  Bb7 {[%clk 0:02:14]} 11. a3 {[%clk 0:01:54]}  d5 {[%clk 0:02:03]} 12. cxd5 {[%clk 0:01:44]}  Nxd5 {[%clk 0:02:04]} 13. Nd2 {[%clk 0:01:43]}  Qd7 {[%clk 0:01:49]} 14. Nxd5 {[%clk 0:01:42]}  Qxd5 {[%clk 0:01:49]} 15. Ne4 {[%clk 0:01:23]}  Rad8 {[%clk 0:01:46]} 16. Qc2 {[%clk 0:01:19]}  Rd7 {[%clk 0:01:35]} 17. Rfd1 {[%clk 0:00:58]}  Rfd8 {[%clk 0:01:34]} 18. Bf3 {[%clk 0:00:57]}  Qe6 {[%clk 0:01:32]} 19. h3 {[%clk 0:00:46]}  h6 {[%clk 0:01:31]} 20. Qc4 {[%clk 0:00:41]}  Qe7 {[%clk 0:01:27]} 21. Nc3 {[%clk 0:00:38]}  Na5 {[%clk 0:01:22]} 22. Qb5 {[%clk 0:00:23]}  Bxf3 {[%clk 0:01:19]} 23. gxf3 {[%clk 0:00:24]}  Qh4 {[%clk 0:01:10]} 24. Kg2 {[%clk 0:00:14]}  Qg5+ {[%clk 0:00:57]} 25. Kh2 {[%clk 0:00:11]}  Qf5 {[%clk 0:00:57]} 26. b4 {[%clk 0:00:04]}  Qxf3 {[%clk 0:00:18]} 27. Ne4 {[%clk 0:00:02]}  Nb7 {[%clk 0:00:10]} 28. bxc5 {[%clk 0:00:01]}  Nxc5 {[%clk 0:00:10]} 29. Nxc5 {[%clk 0:00:01]}  Qxf2+ {[%clk 0:00:11]} 30. Kh1 {[%clk 0:00:01]}  bxc5 {[%clk 0:00:09]} 31. Rxc5 {[%clk 0:00:02]}  Qf3+ {[%clk 0:00:08]} 32. Kh2 {[%clk 0:00:01]}  Qxd1 {[%clk 0:00:09]} 0-1

[Event "January 9 Early 2024"]
[Site "https://www.chess.com"]
[Date "2024.01.11"]
[Round "10"]
[White "Chu, Wei Chao"]
[Black "Hayrapetyan, Hovik"]
[Result "1-0"]
[Board "95"]
[TimeControl "180+1"]
[WhiteFideId "8605661"]
[BlackFideId "13302639"]
[WhiteElo "2638"]
[BlackElo "2803"]
[WhiteTeam "CHN"]
[BlackTeam "ARM"]
[WhiteClock "0:00:01"]
[BlackClock "0:00:01"]

1. d4 {[%clk 0:02:57]}  Nf6 {[%clk 0:03:00]} 2. c4 {[%clk 0:02:57]}  e6 {[%clk 0:03:00]} 3. Nf3 {[%clk 0:02:57]}  d5 {[%clk 0:02:59]} 4. Nc3 {[%clk 0:02:57]}  Bb4 {[%clk 0:02:59]} 5. Qa4+ {[%clk 0:02:53]}  Nc6 {[%clk 0:02:58]} 6. e3 {[%clk 0:02:54]}  O-O {[%clk 0:02:57]} 7. Qc2 {[%clk 0:02:54]}  Re8 {[%clk 0:02:54]} 8. Bd2 {[%clk 0:02:51]}  Bf8 {[%clk 0:02:53]} 9. a3 {[%clk 0:02:45]}  e5 {[%clk 0:02:52]} 10. dxe5 {[%clk 0:02:41]}  Nxe5 {[%clk 0:02:53]} 11. cxd5 {[%clk 0:02:36]}  Nxf3+ {[%clk 0:02:51]} 12. gxf3 {[%clk 0:02:36]}  Nxd5 {[%clk 0:02:51]} 13. O-O-O {[%clk 0:02:35]}  a5 {[%clk 0:02:50]} 14. Bc4 {[%clk 0:02:33]}  Nb6 {[%clk 0:01:53]} 15. Bd3 {[%clk 0:02:29]}  Qh4 {[%clk 0:01:52]} 16. Ne4 {[%clk 0:02:25]}  Be6 {[%clk 0:01:41]} 17. Rdg1 {[%clk 0:02:18]}  h6 {[%clk 0:01:32]} 18. Bc3 {[%clk 0:02:17]}  Nd5 {[%clk 0:01:32]} 19. Rg3 {[%clk 0:02:00]}  Bf5 {[%clk 0:00:32]} 20. Rhg1 {[%clk 0:01:17]}  Bg6 {[%clk 0:00:31]} 21. Rxg6 {[%clk 0:00:20]}  fxg6 {[%clk 0:00:31]} 22. Bc4 {[%clk 0:00:21]}  c6 {[%clk 0:00:29]} 23. Nf6+ {[%clk 0:00:18]}  Kh8 {[%clk 0:00:15]} 24. Qxg6 {[%clk 0:00:18]}  Nxf6 {[%clk 0:00:15]} 25. f4 {[%clk 0:00:02]}  Qh5 {[%clk 0:00:12]} 26. Qxf6 {[%clk 0:00:01]}  Re7 {[%clk 0:00:01]} 27. Qg6 {[%clk 0:00:01]} 1-0

[Event "January 9 Early 2024"]
[Site "https://www.chess.com"]
[Date "2024.01.11"]
[Round "10"]
[White "Sanchez Alvares, Kelvin Antonio"]
[Black "Murthy, Pappu"]
[Result "1-0"]
[Board "99"]
[TimeControl "180+1"]
[WhiteFideId "3906680"]
[BlackFideId "2013401"]
[WhiteElo "2371"]
[BlackElo "1904"]
[WhiteTeam "VEN"]
[BlackTeam "USA"]
[WhiteClock "0:00:41"]
[BlackClock "0:00:03"]

1. e4 {[%clk 0:02:51]}  e6 {[%clk 0:02:59]} 2. d4 {[%clk 0:02:50]}  d5 {[%clk 0:02:59]} 3. e5 {[%clk 0:02:49]}  c5 {[%clk 0:02:57]} 4. c3 {[%clk 0:02:50]}  Nc6 {[%clk 0:02:57]} 5. Nf3 {[%clk 0:02:50]}  Qb6 {[%clk 0:02:57]} 6. a3 {[%clk 0:02:49]}  c4 {[%clk 0:02:56]} 7. Nbd2 {[%clk 0:02:48]}  Na5 {[%clk 0:02:55]} 8. Be2 {[%clk 0:02:48]}  Bd7 {[%clk 0:02:55]} 9. O-O {[%clk 0:02:48]}  O-O-O {[%clk 0:02:54]} 10. Ng5 {[%clk 0:02:48]}  Be8 {[%clk 0:02:53]} 11. f4 {[%clk 0:02:47]}  h6 {[%clk 0:02:53]} 12. Nh3 {[%clk 0:02:45]}  Ne7 {[%clk 0:02:53]} 13. Rb1 {[%clk 0:02:40]}  Kb8 {[%clk 0:02:39]} 14. Nf2 {[%clk 0:02:24]}  Qc7 {[%clk 0:02:28]} 15. g4 {[%clk 0:02:20]}  h5 {[%clk 0:02:24]} 16. h3 {[%clk 0:02:19]}  hxg4 {[%clk 0:02:22]} 17. hxg4 {[%clk 0:02:20]}  g6 {[%clk 0:02:22]} 18. Kg2 {[%clk 0:02:19]}  Nc8 {[%clk 0:02:04]} 19. Nf3 {[%clk 0:02:16]}  Nb6 {[%clk 0:02:02]} 20. Be3 {[%clk 0:02:06]}  Ba4 {[%clk 0:02:01]} 21. Qe1 {[%clk 0:01:54]}  Be7 {[%clk 0:02:00]} 22. Bd1 {[%clk 0:01:43]}  Bxd1 {[%clk 0:01:58]} 23. Qxd1 {[%clk 0:01:37]}  Nb3 {[%clk 0:01:57]} 24. Nh3 {[%clk 0:01:30]}  Qc6 {[%clk 0:01:24]} 25. Rh1 {[%clk 0:01:26]}  Qa4 {[%clk 0:01:19]} 26. Qe2 {[%clk 0:01:20]}  Ka8 {[%clk 0:01:07]} 27. Nhg5 {[%clk 0:01:18]}  Qe8 {[%clk 0:01:04]} 28. Rxh8 {[%clk 0:01:17]}  Qxh8 {[%clk 0:01:00]} 29. Nxf7 {[%clk 0:01:17]}  Qg7 {[%clk 0:00:53]} 30. Nxd8 {[%clk 0:01:16]}  Bxd8 {[%clk 0:00:53]} 31. Rh1 {[%clk 0:01:14]}  Kb8 {[%clk 0:00:49]} 32. Kg3 {[%clk 0:01:14]}  a6 {[%clk 0:00:47]} 33. Qh2 {[%clk 0:01:13]}  Ka7 {[%clk 0:00:45]} 34. Qh8 {[%clk 0:01:05]}  Qd7 {[%clk 0:00:35]} 35. Rh7 {[%clk 0:01:04]}  Qc8 {[%clk 0:00:25]} 36. Qe8 {[%clk 0:00:59]}  Na5 {[%clk 0:00:22]} 37. Rh8 {[%clk 0:00:57]}  Nc6 {[%clk 0:00:20]} 38. Qxg6 {[%clk 0:00:57]}  Qc7 {[%clk 0:00:19]} 39. Rh7 {[%clk 0:00:55]}  Qc8 {[%clk 0:00:15]} 40. f5 {[%clk 0:00:55]}  exf5 {[%clk 0:00:14]} 41. Qxf5 {[%clk 0:00:55]}  Qxf5 {[%clk 0:00:12]} 42. gxf5 {[%clk 0:00:54]}  Kb8 {[%clk 0:00:11]} 43. f6 {[%clk 0:00:47]}  Kc8 {[%clk 0:00:08]} 44. Ng5 {[%clk 0:00:46]}  Nd7 {[%clk 0:00:06]} 45. Rh8 {[%clk 0:00:42]}  Kc7 {[%clk 0:00:04]} 46. Ne6+ {[%clk 0:00:42]}  Kc8 {[%clk 0:00:03]} 47. f7 {[%clk 0:00:41]} 1-0

[Event "January 9 Early 2024"]
[Site "https://www.chess.com"]
[Date "2024.01.11"]
[Round "10"]
[White "Jovic, Stanoje"]
[Black "Iljin, Timofey"]
[Result "0-1"]
[Board "100"]
[TimeControl "180+1"]
[WhiteFideId "905020"]
[BlackFideId "14110180"]
[WhiteElo "2418"]
[BlackElo "2550"]
[WhiteTeam "SRB"]
[BlackTeam "UKR"]
[WhiteClock "0:00:17"]
[BlackClock "0:00:03"]

1. c4 {[%clk 0:03:00]}  c5 {[%clk 0:02:56]} 2. g3 {[%clk 0:03:00]}  g6 {[%clk 0:02:55]} 3. Bg2 {[%clk 0:03:01]}  Bg7 {[%clk 0:02:56]} 4. Nc3 {[%clk 0:03:01]}  Nc6 {[%clk 0:02:56]} 5. Nf3 {[%clk 0:03:01]}  d6 {[%clk 0:02:57]} 6. O-O {[%clk 0:03:01]}  Bf5 {[%clk 0:02:58]} 7. a3 {[%clk 0:02:56]}  Qd7 {[%clk 0:02:58]} 8. b4 {[%clk 0:02:53]}  Bh3 {[%clk 0:02:53]} 9. bxc5 {[%clk 0:02:45]}  Bxg2 {[%clk 0:02:51]} 10. Kxg2 {[%clk 0:02:44]}  dxc5 {[%clk 0:02:52]} 11. Rb1 {[%clk 0:02:42]}  h5 {[%clk 0:02:46]} 12. Qa4 {[%clk 0:02:35]}  Nf6 {[%clk 0:02:30]} 13. Nd5 {[%clk 0:02:25]}  h4 {[%clk 0:02:16]} 14. Nb6 {[%clk 0:02:13]}  Qf5 {[%clk 0:01:42]} 15. Nxa8 {[%clk 0:02:06]}  Qxb1 {[%clk 0:01:34]} 16. Nc7+ {[%clk 0:02:02]}  Kf8 {[%clk 0:01:11]} 17. d3 {[%clk 0:01:49]}  hxg3 {[%clk 0:00:53]} 18. hxg3 {[%clk 0:01:46]}  Qa2 {[%clk 0:00:38]} 19. Re1 {[%clk 0:01:33]}  Ng4 {[%clk 0:00:36]} 20. Qb5 {[%clk 0:01:08]}  Bc3 {[%clk 0:00:31]} 21. Rf1 {[%clk 0:00:36]}  Qxe2 {[%clk 0:00:22]} 22. Qxb7 {[%clk 0:00:34]}  Nce5 {[%clk 0:00:05]} 23. Nxe5 {[%clk 0:00:27]}  Rh2+ {[%clk 0:00:04]} 24. Kg1 {[%clk 0:00:25]}  Bxe5 {[%clk 0:00:02]} 25. Qc8+ {[%clk 0:00:24]}  Kg7 {[%clk 0:00:02]} 26. Qxg4 {[%clk 0:00:24]}  Qxg4 {[%clk 0:00:02]} 27. Kxh2 {[%clk 0:00:20]}  Bxc7 {[%clk 0:00:02]} 28. Kg2 {[%clk 0:00:19]}  Qe2 {[%clk 0:00:02]} 29. Be3 {[%clk 0:00:19]}  Qxd3 {[%clk 0:00:03]} 30. Rb1 {[%clk 0:00:17]}  Qxb1 {[%clk 0:00:03]} 0-1

[Event "January 9 Early 2024"]
[Site "https://www.chess.com"]
[Date "2024.01.11"]
[Round "10"]
[White "Recuero Guerra, Javier"]
[Black "Poddubnyi, Viktor"]
[Result "0-1"]
[Board "104"]
[TimeControl "180+1"]
[WhiteFideId "2254085"]
[BlackFideId "4141989"]
[WhiteElo "2286"]
[BlackElo "2419"]
[WhiteTeam "ESP"]
[BlackTeam "RUS"]
[WhiteClock "0:00:01"]
[BlackClock "0:00:04"]

1. e4 {[%clk 0:03:00]}  g6 {[%clk 0:03:00]} 2. d4 {[%clk 0:02:59]}  Bg7 {[%clk 0:03:00]} 3. Nc3 {[%clk 0:02:54]}  d6 {[%clk 0:03:00]} 4. f4 {[%clk 0:02:53]}  Nf6 {[%clk 0:02:59]} 5. Bd3 {[%clk 0:02:46]}  e5 {[%clk 0:02:53]} 6. dxe5 {[%clk 0:02:40]}  dxe5 {[%clk 0:02:52]} 7. Nf3 {[%clk 0:02:36]}  exf4 {[%clk 0:02:36]} 8. Bxf4 {[%clk 0:02:33]}  c6 {[%clk 0:02:27]} 9. Qe2 {[%clk 0:02:21]}  Qb6 {[%clk 0:02:18]} 10. O-O-O {[%clk 0:02:14]}  O-O {[%clk 0:02:17]} 11. h3 {[%clk 0:01:54]}  Nbd7 {[%clk 0:01:58]} 12. Be3 {[%clk 0:01:22]}  Qa5 {[%clk 0:01:57]} 13. Bd4 {[%clk 0:01:15]}  Nc5 {[%clk 0:01:40]} 14. Rhe1 {[%clk 0:01:07]}  Nxd3+ {[%clk 0:01:18]} 15. Qxd3 {[%clk 0:00:43]}  Be6 {[%clk 0:01:17]} 16. Kb1 {[%clk 0:00:39]}  b5 {[%clk 0:00:55]} 17. b3 {[%clk 0:00:15]}  Rad8 {[%clk 0:00:44]} 18. Qe3 {[%clk 0:00:15]}  Nd7 {[%clk 0:00:37]} 19. Bxg7 {[%clk 0:00:15]}  Kxg7 {[%clk 0:00:37]} 20. e5 {[%clk 0:00:15]}  Nb6 {[%clk 0:00:33]} 21. Ne4 {[%clk 0:00:13]}  Nd5 {[%clk 0:00:21]} 22. Qg5 {[%clk 0:00:12]}  Nb4 {[%clk 0:00:15]} 23. Nc3 {[%clk 0:00:05]}  h6 {[%clk 0:00:10]} 24. Qf6+ {[%clk 0:00:04]}  Kg8 {[%clk 0:00:09]} 25. Qf4 {[%clk 0:00:05]}  Bf5 {[%clk 0:00:07]} 26. Rxd8 {[%clk 0:00:01]}  Bxc2+ {[%clk 0:00:06]} 27. Kb2 {[%clk 0:00:01]}  Rxd8 {[%clk 0:00:06]} 28. Qxh6 {[%clk 0:00:01]}  Bf5 {[%clk 0:00:04]} 0-1

[Event "January 9 Early 2024"]
[Site "https://www.chess.com"]
[Date "2024.01.11"]
[Round "10"]
[White "Bachmann, Axel"]
[Black "Bardyk, Artem"]
[Result "1-0"]
[Board "105"]
[TimeControl "180+1"]
[WhiteFideId "3700488"]
[BlackFideId "34349979"]
[WhiteElo "2896"]
[BlackElo "2772"]
[WhiteTeam "PAR"]
[BlackTeam "RUS"]
[WhiteClock "0:00:21"]
[BlackClock "0:00:12"]

1. d4 {[%clk 0:03:00]}  d5 {[%clk 0:02:59]} 2. c4 {[%clk 0:03:01]}  e6 {[%clk 0:02:59]} 3. Nc3 {[%clk 0:03:00]}  Nf6 {[%clk 0:02:59]} 4. cxd5 {[%clk 0:03:00]}  Nxd5 {[%clk 0:03:00]} 5. e4 {[%clk 0:02:59]}  Nxc3 {[%clk 0:03:00]} 6. bxc3 {[%clk 0:02:59]}  c5 {[%clk 0:03:01]} 7. Rb1 {[%clk 0:03:00]}  Be7 {[%clk 0:03:00]} 8. Nf3 {[%clk 0:03:00]}  O-O {[%clk 0:02:59]} 9. Bc4 {[%clk 0:02:59]}  Nd7 {[%clk 0:02:58]} 10. O-O {[%clk 0:02:58]}  b6 {[%clk 0:02:57]} 11. d5 {[%clk 0:02:48]}  e5 {[%clk 0:02:47]} 12. Bb5 {[%clk 0:02:32]}  Bd6 {[%clk 0:02:42]} 13. c4 {[%clk 0:02:25]}  Nf6 {[%clk 0:02:38]} 14. Re1 {[%clk 0:02:22]}  h6 {[%clk 0:02:33]} 15. h3 {[%clk 0:02:19]}  Bd7 {[%clk 0:02:28]} 16. a4 {[%clk 0:02:05]}  Bxb5 {[%clk 0:02:24]} 17. Rxb5 {[%clk 0:02:06]}  Ne8 {[%clk 0:02:20]} 18. a5 {[%clk 0:02:04]}  Nc7 {[%clk 0:02:17]} 19. Rb1 {[%clk 0:02:02]}  Rb8 {[%clk 0:02:15]} 20. axb6 {[%clk 0:01:49]}  axb6 {[%clk 0:02:16]} 21. Re3 {[%clk 0:01:46]}  b5 {[%clk 0:01:55]} 22. cxb5 {[%clk 0:01:34]}  Nxb5 {[%clk 0:01:56]} 23. Nd2 {[%clk 0:01:20]}  Be7 {[%clk 0:01:44]} 24. Reb3 {[%clk 0:01:14]}  Qd7 {[%clk 0:01:32]} 25. Qg4 {[%clk 0:01:12]}  f5 {[%clk 0:01:25]} 26. exf5 {[%clk 0:01:09]}  Bd6 {[%clk 0:01:21]} 27. Ne4 {[%clk 0:01:04]}  c4 {[%clk 0:01:13]} 28. Rxb5 {[%clk 0:00:40]}  Rxb5 {[%clk 0:01:14]} 29. Rxb5 {[%clk 0:00:40]}  Qxb5 {[%clk 0:01:15]} 30. Nxd6 {[%clk 0:00:41]}  Qd7 {[%clk 0:00:54]} 31. Nxc4 {[%clk 0:00:40]}  Qxd5 {[%clk 0:00:52]} 32. Bxh6 {[%clk 0:00:39]}  Rf7 {[%clk 0:00:52]} 33. Ne3 {[%clk 0:00:37]}  Qd2 {[%clk 0:00:47]} 34. f6 {[%clk 0:00:30]}  Qc1+ {[%clk 0:00:37]} 35. Kh2 {[%clk 0:00:28]}  e4 {[%clk 0:00:33]} 36. Bxg7 {[%clk 0:00:25]}  Qc7+ {[%clk 0:00:27]} 37. g3 {[%clk 0:00:25]}  Qd7 {[%clk 0:00:27]} 38. Nf5 {[%clk 0:00:21]}  e3 {[%clk 0:00:12]} 39. Nh6+ {[%clk 0:00:20]}  Kh7 {[%clk 0:00:12]} 40. Qe4+ {[%clk 0:00:21]}  Qf5 {[%clk 0:00:12]} 1-0